fUST/lending_fUST_20240630
["ID","MTS","AMOUNT","RATE_DAILY","PERIOD"]
[330684100,1719708645011,-500.0,0.00016986,2]
[330684101,1719708645020,-500.0,0.00016986,2]
[330684102,1719708645029,-500.0,0.00016986,2]
[330684103,1719708645039,-500.0,0.00016986,2]
[330684104,1719708645048,-500.0,0.00016986,2]
[330684105,1719708645057,-633.21,0.00016986,2]
[330684106,1719708645066,-2593.31,0.00016986,2]
[330684107,1719708645075,-500.0,0.00016986,2]
[330684108,1719708645085,-510.97259515,0.00016986,2]
[330684109,1719708645094,-1377.94,0.00016986,2]
[330684110,1719708645104,-500.0,0.00016986,2]
[330684111,1719708645113,-500.0,0.00016986,2]
[330684112,1719708645122,-1938.01,0.00016986,2]
[330684113,1719708645133,-500.0,0.00016986,2]
[330684114,1719708645143,-500.0,0.00016986,2]
[330684115,1719708645152,-596.54,0.00016986,2]
[330684116,1719708645162,-500.0,0.00016986,2]
[330684117,1719708645172,-909.52,0.00016986,2]
[330684118,1719708645180,-500.0,0.00016986,2]
[330684119,1719708645189,-500.0,0.00016986,2]
[330684120,1719708645199,-500.0,0.00016986,2]
[330684121,1719708645210,-1655.78,0.00016986,2]
[330684122,1719708645220,-500.0,0.00016986,2]
[330684123,1719708645229,-1443.69,0.00016986,2]
[330684124,1719708645240,-500.0,0.00016986,2]
[330684125,1719708645249,-500.0,0.00016986,2]
[330684126,1719708645259,-666.27,0.00016986,2]
[330684127,1719708645268,-186.12441185,0.00016986,2]
[330684128,1719708645278,-500.0,0.00016986,2]
[330684129,1719708645288,-503.64888201,0.00016986,2]
[330684130,1719708645298,-1444.56,0.00016986,2]
[330684131,1719708645308,-872.75,0.00016986,2]
[330684132,1719708645319,-500.0,0.00016986,2]
[330684133,1719708645328,-500.0,0.00016986,2]
[330684134,1719708645338,-1199.72,0.00016986,2]
[330684135,1719708645347,-1694.96660191,0.00016986,2]
[330684163,1719708646540,-233.95198892,0.00016986,2]
[330684272,1719708908691,999.9933705,0.00014999,2]
[330684315,1719709794585,-219.133292,0.00015344,2]
[330684316,1719709794623,-440.22887798,0.00015376,2]
[330684317,1719709795055,-286.25384153,0.00015376,2]
[330684406,1719709838296,-13908.57203679,0.00015376,2]
[330684408,1719709838306,-620.00007354,0.00016214,2]
[330684410,1719709838315,-17315.86511178,0.00016338,2]
[330684412,1719709838324,-5085.72050359,0.00016338,2]
[330684414,1719709838334,-1668.83180154,0.00016338,2]
[330684416,1719709838343,-500.0,0.00016438,2]
[330684418,1719709838352,-501.1586156,0.00016438,2]
[330684420,1719709838362,-500.0,0.00016438,2]
[330684422,1719709838371,-682.6,0.00016438,2]
[330684424,1719709838380,-2024.83,0.00016438,2]
[330684426,1719709838392,-500.0,0.00016438,2]
[330684428,1719709838402,-500.0,0.00016438,2]
[330684430,1719709838412,-500.0,0.00016438,2]
[330684431,1719709838422,-534.98,0.00016438,2]
[330684433,1719709838432,-504.28075772,0.00016438,2]
[330684435,1719709838441,-500.0,0.00016438,2]
[330684438,1719709838452,-500.0,0.00016438,2]
[330684439,1719709838461,-500.0,0.00016438,2]
[330684441,1719709838471,-500.0,0.00016438,2]
[330684443,1719709838481,-500.0,0.00016438,2]
[330684445,1719709838491,-500.0,0.00016438,2]
[330684447,1719709838501,-500.0,0.00016438,2]
[330684450,1719709838514,-500.0,0.00016438,2]
[330684453,1719709838535,-500.0,0.00016438,2]
[330684455,1719709838550,-500.0,0.00016438,2]
[330684458,1719709838568,-500.0,0.00016438,2]
[330684461,1719709838588,-536.30899488,0.00016438,2]
[330684464,1719709838609,-505.30489645,0.00016438,2]
[330684466,1719709838625,-500.0,0.00016438,2]
[330684469,1719709838642,-500.0,0.00016438,2]
[330684472,1719709838660,-584.68,0.00016438,2]
[330684474,1719709838674,-792.36,0.00016438,2]
[330684477,1719709838689,-500.0,0.00016438,2]
[330684480,1719709838706,-500.0,0.00016438,2]
[330684483,1719709838724,-500.0,0.00016438,2]
[330684485,1719709838742,-778.02,0.00016438,2]
[330684487,1719709838754,-1021.35,0.00016438,2]
[330684490,1719709838769,-500.0,0.00016438,2]
[330684493,1719709838786,-500.0,0.00016438,2]
[330684495,1719709838799,-500.0,0.00016438,2]
[330684498,1719709838815,-502.65472074,0.00016438,2]
[330684500,1719709838827,-500.0,0.00016438,2]
[330684502,1719709838840,-579.64,0.00016438,2]
[330684505,1719709838855,-519.90678711,0.00016438,2]
[330684507,1719709838869,-500.0,0.00016438,2]
[330684510,1719709838883,-500.0,0.00016438,2]
[330684512,1719709838898,-501.59453709,0.00016438,2]
[330684515,1719709838911,-500.0,0.00016438,2]
[330684517,1719709838924,-500.0,0.00016438,2]
[330684520,1719709838938,-500.0,0.00016438,2]
[330684522,1719709838951,-500.0,0.00016438,2]
[330684524,1719709838965,-754.29,0.00016438,2]
[330684527,1719709838978,-500.0,0.00016438,2]
[330684529,1719709838992,-500.0,0.00016438,2]
[330684533,1719709839020,-503.5916084,0.00016438,2]
[330684537,1719709839048,-1938.01,0.00016438,2]
[330684540,1719709839077,-500.0,0.00016438,2]
[330684543,1719709839099,-500.0,0.00016438,2]
[330684546,1719709839120,-15224.13,0.00016438,2]
[330684549,1719709839139,-500.0,0.00016438,2]
[330684551,1719709839158,-1377.94,0.00016438,2]
[330684554,1719709839176,-500.0,0.00016438,2]
[330684557,1719709839193,-500.0,0.00016438,2]
[330684559,1719709839210,-500.0,0.00016438,2]
[330684562,1719709839225,-600.08,0.00016438,2]
[330684564,1719709839240,-500.0,0.00016438,2]
[330684567,1719709839256,-500.0,0.00016438,2]
[330684569,1719709839270,-1170.68,0.00016438,2]
[330684572,1719709839286,-500.0,0.00016438,2]
[330684574,1719709839301,-909.52,0.00016438,2]
[330684577,1719709839315,-500.0,0.00016438,2]
[330684579,1719709839331,-500.0,0.00016438,2]
[330684581,1719709839345,-500.0,0.00016438,2]
[330684584,1719709839360,-500.0,0.00016438,2]
[330684586,1719709839376,-504.53820613,0.00016438,2]
[330684589,1719709839393,-500.0,0.00016438,2]
[330684592,1719709839407,-500.0,0.00016438,2]
[330684594,1719709839421,-500.0,0.00016438,2]
[330684597,1719709839436,-500.0,0.00016438,2]
[330684599,1719709839450,-872.75,0.00016438,2]
[330684601,1719709839465,-500.0,0.00016438,2]
[330684604,1719709839481,-280.83590196,0.00016438,2]
[330684606,1719709839496,-500.0,0.00016438,2]
[330684609,1719709839509,-599.79,0.00016438,2]
[330684611,1719709839520,-500.0,0.00016438,2]
[330684613,1719709839530,-500.0,0.00016438,2]
[330684615,1719709839540,-540.38,0.00016438,2]
[330684617,1719709839549,-523.31886951,0.00016438,2]
[330684639,1719709839761,-500.0,0.00016438,2]
[330684641,1719709839774,-1655.78,0.00016438,2]
[330684643,1719709839784,-500.0,0.00016438,2]
[330684645,1719709839794,-1074.38,0.00016438,2]
[330684647,1719709839804,-1829.55,0.00016438,2]
[330684649,1719709839814,-385.10008515,0.00016438,2]
[330684651,1719709839824,-500.0,0.00016438,2]
[330684653,1719709839833,-1371.07,0.00016438,2]
[330684655,1719709839843,-500.0,0.00016438,2]
[330684657,1719709839852,-500.0,0.00016438,2]
[330684659,1719709839862,-562.56024836,0.00016438,2]
[330684661,1719709839872,-500.0,0.00016438,2]
[330684663,1719709839882,-2085.74,0.00016438,2]
[330684664,1719709839892,-500.0,0.00016438,2]
[330684667,1719709839903,-516.11560987,0.00016438,2]
[330684669,1719709839912,-500.0,0.00016438,2]
[330684671,1719709839922,-500.0,0.00016438,2]
[330684673,1719709839932,-500.0,0.00016438,2]
[330684674,1719709839941,-500.0,0.00016438,2]
[330684676,1719709839951,-503.32845027,0.00016438,2]
[330684678,1719709839960,-659.53,0.00016438,2]
[330684680,1719709839971,-300.84990925,0.00016438,2]
[330684682,1719709839981,-500.0,0.00016438,2]
[330684684,1719709839992,-500.0,0.00016438,2]
[330684686,1719709840002,-671.64,0.00016438,2]
[330684688,1719709840012,-2429.47,0.00016438,2]
[330684690,1719709840022,-507.86827158,0.00016438,2]
[330684692,1719709840032,-500.0,0.00016438,2]
[330684694,1719709840041,-500.0,0.00016438,2]
[330684696,1719709840051,-521.51,0.00016438,2]
[330684698,1719709840063,-500.0,0.00016438,2]
[330684700,1719709840073,-500.0,0.00016438,2]
[330684702,1719709840083,-500.0,0.00016438,2]
[330684704,1719709840092,-522.67,0.00016438,2]
[330684706,1719709840103,-501.9338835,0.00016438,2]
[330684708,1719709840112,-1048.28,0.00016438,2]
[330684710,1719709840122,-500.0,0.00016438,2]
[330684712,1719709840131,-500.0,0.00016438,2]
[330684713,1719709840144,-543.19,0.00016438,2]
[330684716,1719709840155,-665.63,0.00016438,2]
[330684717,1719709840164,-500.0,0.00016438,2]
[330684719,1719709840177,-287.94090915,0.00016438,2]
[330684721,1719709840187,-500.0,0.00016438,2]
[330684723,1719709840196,-573.8,0.00016438,2]
[330684725,1719709840206,-500.0,0.00016438,2]
[330684727,1719709840216,-1298.38,0.00016438,2]
[330684730,1719709840226,-832.07,0.00016438,2]
[330684731,1719709840236,-500.0,0.00016438,2]
[330684733,1719709840246,-500.0,0.00016438,2]
[330684735,1719709840256,-500.0,0.00016438,2]
[330684737,1719709840266,-500.0,0.00016438,2]
[330684739,1719709840275,-500.0,0.00016438,2]
[330684741,1719709840285,-500.0,0.00016438,2]
[330684743,1719709840295,-500.0,0.00016438,2]
[330684745,1719709840305,-500.0,0.00016438,2]
[330684747,1719709840314,-500.0,0.00016438,2]
[330684750,1719709840324,-12447.99,0.00016438,2]
[330684752,1719709840334,-519.75471503,0.00016438,2]
[330684754,1719709840344,-929.74,0.00016438,2]
[330684756,1719709840354,-502.60619285,0.00016438,2]
[330684758,1719709840364,-500.0,0.00016438,2]
[330684760,1719709840374,-500.0,0.00016438,2]
[330684762,1719709840384,-1225.07,0.00016438,2]
[330684764,1719709840397,-504.47039906,0.00016438,2]
[330684766,1719709840407,-500.0,0.00016438,2]
[330684768,1719709840416,-500.0,0.00016438,2]
[330684770,1719709840426,-3049.6,0.00016438,2]
[330684772,1719709840435,-500.0,0.00016438,2]
[330684774,1719709840445,-511.16,0.00016438,2]
[330684776,1719709840455,-608.63,0.00016438,2]
[330684777,1719709840467,-500.0,0.00016438,2]
[330684779,1719709840477,-500.0,0.00016438,2]
[330684782,1719709840487,-500.0,0.00016438,2]
[330684784,1719709840497,-877.66,0.00016438,2]
[330684785,1719709840507,-500.0,0.00016438,2]
[330684787,1719709840519,-500.0,0.00016438,2]
[330684790,1719709840528,-500.0,0.00016438,2]
[330684791,1719709840538,-3738.88,0.00016438,2]
[330684794,1719709840548,-2152.41,0.00016438,2]
[330684795,1719709840558,-500.0,0.00016438,2]
[330684798,1719709840568,-500.0,0.00016438,2]
[330684800,1719709840578,-753.58,0.00016438,2]
[330684802,1719709840588,-2593.31,0.00016438,2]
[330684804,1719709840598,-917.88,0.00016438,2]
[330684806,1719709840608,-500.0,0.00016438,2]
[330684808,1719709840618,-500.0,0.00016438,2]
[330684810,1719709840627,-1381.18,0.00016438,2]
[330684812,1719709840638,-319.86139206,0.00016438,2]
[330684814,1719709840648,-500.0,0.00016438,2]
[330684816,1719709840657,-1066.98,0.00016438,2]
[330684817,1719709840667,-500.0,0.00016438,2]
[330684820,1719709840677,-500.0,0.00016438,2]
[330684822,1719709840688,-500.0,0.00016438,2]
[330684824,1719709840698,-500.0,0.00016438,2]
[330684826,1719709840708,-500.0,0.00016438,2]
[330684828,1719709840717,-500.0,0.00016438,2]
[330684830,1719709840727,-2592.02,0.00016438,2]
[330684832,1719709840737,-546.48,0.00016438,2]
[330684834,1719709840747,-500.0,0.00016438,2]
[330684836,1719709840756,-500.0,0.00016438,2]
[330684838,1719709840766,-500.0,0.00016438,2]
[330684840,1719709840776,-981.86,0.00016438,2]
[330684842,1719709840786,-500.0,0.00016438,2]
[330684844,1719709840795,-1522.32,0.00016438,2]
[330684846,1719709840804,-503.40323584,0.00016438,2]
[330684848,1719709840814,-500.0,0.00016438,2]
[330684850,1719709840823,-742.51,0.00016438,2]
[330684852,1719709840832,-505.58287567,0.00016438,2]
[330684854,1719709840841,-500.0,0.00016438,2]
[330684856,1719709840850,-500.0,0.00016438,2]
[330684858,1719709840860,-500.0,0.00016438,2]
[330684860,1719709840869,-500.0,0.00016438,2]
[330684862,1719709840878,-500.0,0.00016438,2]
[330684864,1719709840888,-512.8583965,0.00016438,2]
[330684866,1719709840897,-570.83,0.00016438,2]
[330684868,1719709840907,-812.61,0.00016438,2]
[330684870,1719709840916,-500.0,0.00016438,2]
[330684872,1719709840925,-500.0,0.00016438,2]
[330684874,1719709840936,-500.0,0.00016438,2]
[330684876,1719709840945,-500.0,0.00016438,2]
[330684878,1719709840956,-500.0,0.00016438,2]
[330684880,1719709840966,-500.0,0.00016438,2]
[330684882,1719709840975,-500.0,0.00016438,2]
[330684884,1719709840985,-500.0,0.00016438,2]
[330684886,1719709840994,-500.0,0.00016438,2]
[330684888,1719709841004,-500.0,0.00016438,2]
[330684890,1719709841014,-500.0,0.00016438,2]
[330684892,1719709841024,-500.0,0.00016438,2]
[330684894,1719709841033,-500.0,0.00016438,2]
[330684896,1719709841043,-583.83,0.00016438,2]
[330684898,1719709841052,-500.0,0.00016438,2]
[330684900,1719709841066,-500.0,0.00016438,2]
[330684902,1719709841076,-500.0,0.00016438,2]
[330684904,1719709841085,-500.0,0.00016438,2]
[330684906,1719709841095,-500.0,0.00016438,2]
[330684908,1719709841105,-500.0,0.00016438,2]
[330684910,1719709841114,-500.0,0.00016438,2]
[330684912,1719709841123,-500.0,0.00016438,2]
[330684914,1719709841133,-509.09,0.00016438,2]
[330684916,1719709841144,-500.0,0.00016438,2]
[330684918,1719709841156,-500.0,0.00016438,2]
[330684920,1719709841166,-500.0,0.00016438,2]
[330684922,1719709841175,-3567.82,0.00016438,2]
[330684924,1719709841184,-2508.91,0.00016438,2]
[330684926,1719709841193,-500.0,0.00016438,2]
[330684928,1719709841202,-500.0,0.00016438,2]
[330684930,1719709841211,-500.0,0.00016438,2]
[330684932,1719709841221,-500.0,0.00016438,2]
[330684934,1719709841230,-500.0,0.00016438,2]
[330684936,1719709841239,-500.0,0.00016438,2]
[330684938,1719709841248,-500.0,0.00016438,2]
[330684940,1719709841258,-500.0,0.00016438,2]
[330684942,1719709841268,-500.0,0.00016438,2]
[330684944,1719709841277,-500.0,0.00016438,2]
[330684946,1719709841286,-427.4534004,0.00016438,2]
[330684948,1719709841295,-408.71040211,0.00016438,2]
[330684950,1719709841304,-522.12,0.00016438,2]
[330684952,1719709841314,-711.41,0.00016438,2]
[330684954,1719709841323,-500.0,0.00016438,2]
[330684956,1719709841332,-500.0,0.00016438,2]
[330684958,1719709841342,-500.0,0.00016438,2]
[330684960,1719709841352,-500.0,0.00016438,2]
[330684962,1719709841361,-500.0,0.00016438,2]
[330684964,1719709841370,-1436.52,0.00016438,2]
[330684966,1719709841380,-886.43,0.00016438,2]
[330684968,1719709841390,-302.22589046,0.00016438,2]
[330684970,1719709841399,-504.39391531,0.00016438,2]
[330684972,1719709841409,-500.0,0.00016438,2]
[330684974,1719709841419,-500.0,0.00016438,2]
[330684976,1719709841429,-637.95,0.00016438,2]
[330684978,1719709841439,-2729.96,0.00016438,2]
[330684980,1719709841448,-500.0,0.00016438,2]
[330684982,1719709841458,-500.0,0.00016438,2]
[330684984,1719709841468,-500.0,0.00016438,2]
[330684986,1719709841478,-500.0,0.00016438,2]
[330684988,1719709841487,-568.34,0.00016438,2]
[330684990,1719709841497,-246.64130882,0.00016438,2]
[330684992,1719709841508,-500.0,0.00016438,2]
[330684994,1719709841518,-601.04,0.00016438,2]
[330684996,1719709841528,-500.0,0.00016438,2]
[330684998,1719709841539,-500.0,0.00016438,2]
[330685000,1719709841548,-500.0,0.00016438,2]
[330685002,1719709841558,-500.0,0.00016438,2]
[330685004,1719709841568,-500.0,0.00016438,2]
[330685006,1719709841578,-1261.27,0.00016438,2]
[330685009,1719709841587,-500.0,0.00016438,2]
[330685011,1719709841597,-231.18514124,0.00016438,2]
[330685013,1719709841606,-500.0,0.00016438,2]
[330685015,1719709841616,-1456.72,0.00016438,2]
[330685017,1719709841626,-703.64,0.00016438,2]
[330685019,1719709841635,-500.0,0.00016438,2]
[330685021,1719709841646,-500.0,0.00016438,2]
[330685022,1719709841655,-500.0,0.00016438,2]
[330685024,1719709841665,-500.0,0.00016438,2]
[330685027,1719709841674,-500.0,0.00016438,2]
[330685029,1719709841684,-500.0,0.00016438,2]
[330685031,1719709841694,-500.0,0.00016438,2]
[330685032,1719709841703,-500.0,0.00016438,2]
[330685034,1719709841713,-500.0,0.00016438,2]
[330685036,1719709841723,-500.0,0.00016438,2]
[330685039,1719709841732,-500.0,0.00016438,2]
[330685041,1719709841741,-500.0,0.00016438,2]
[330685043,1719709841751,-500.0,0.00016438,2]
[330685045,1719709841762,-522.46275303,0.00016438,2]
[330685046,1719709841772,-500.0,0.00016438,2]
[330685049,1719709841782,-500.0,0.00016438,2]
[330685050,1719709841792,-500.0,0.00016438,2]
[330685052,1719709841801,-500.0,0.00016438,2]
[330685054,1719709841810,-500.0,0.00016438,2]
[330685057,1719709841820,-180.45,0.00016438,2]
[330685059,1719709841829,-500.0,0.00016438,2]
[330685060,1719709841840,-596.54,0.00016438,2]
[330685063,1719709841849,-500.0,0.00016438,2]
[330685065,1719709841860,-500.0,0.00016438,2]
[330685067,1719709841870,-666.27,0.00016438,2]
[330685068,1719709841879,-500.0,0.00016438,2]
[330685070,1719709841889,-500.0,0.00016438,2]
[330685082,1719709841990,-633.21,0.00016438,2]
[330685085,1719709842005,-500.0,0.00016438,2]
[330685087,1719709842016,-500.0,0.00016438,2]
[330685089,1719709842025,-1443.69,0.00016438,2]
[330685091,1719709842034,-500.0,0.00016438,2]
[330685093,1719709842044,-500.0,0.00016438,2]
[330685095,1719709842054,-1276.9,0.00016438,2]
[330685097,1719709842064,-517.76991674,0.00016438,2]
[330685099,1719709842079,-640.76055392,0.00016438,2]
[330685101,1719709842089,-500.0,0.00016438,2]
[330685103,1719709842098,-524.4488104,0.00016438,2]
[330685105,1719709842108,-474.59798759,0.00016438,2]
[330685107,1719709842119,-545.95292562,0.00016438,2]
[330685109,1719709842128,-3083.04,0.00016438,2]
[330685111,1719709842139,-530.82,0.00016438,2]
[330685113,1719709842151,-1887.21,0.00016438,2]
[330685116,1719709842160,-500.0,0.00016438,2]
[330685118,1719709842170,-500.0,0.00016438,2]
[330685120,1719709842179,-500.0,0.00016438,2]
[330685122,1719709842188,-1444.56,0.00016438,2]
[330685124,1719709842198,-567.44,0.00016438,2]
[330685126,1719709842207,-3752.82,0.00016438,2]
[330685128,1719709842216,-500.0,0.00016438,2]
[330685129,1719709842225,-1335.66,0.00016438,2]
[330685131,1719709842235,-1199.72,0.00016438,2]
[330685133,1719709842245,-500.0,0.00016438,2]
[330685135,1719709842254,-500.0,0.00016438,2]
[330685137,1719709842263,-513.46,0.00016438,2]
[330685140,1719709842273,-500.0,0.00016438,2]
[330685141,1719709842282,-665.13,0.00016438,2]
[330685143,1719709842292,-500.0,0.00016438,2]
[330685145,1719709842301,-669.96,0.00016438,2]
[330685147,1719709842311,-500.0,0.00016438,2]
[330685149,1719709842320,-500.0,0.00016438,2]
[330685151,1719709842329,-500.0,0.00016438,2]
[330685154,1719709842339,-17440.5,0.00016438,2]
[330685156,1719709842349,-500.0,0.00016438,2]
[330685157,1719709842358,-500.0,0.00016438,2]
[330685158,1719709842367,-754.24,0.00016438,2]
[330685159,1719709842377,-500.0,0.00016438,2]
[330685160,1719709842386,-756.38,0.00016438,2]
[330685161,1719709842397,-500.0,0.00016438,2]
[330685162,1719709842407,-1499.87,0.00016438,2]
[330685163,1719709842415,-500.0,0.00016438,2]
[330685164,1719709842424,-26653.1,0.00016438,2]
[330685165,1719709842433,-500.0,0.00016438,2]
[330685166,1719709842442,-500.0,0.00016438,2]
[330685167,1719709842451,-500.0,0.00016438,2]
[330685168,1719709842461,-500.0,0.00016438,2]
[330685169,1719709842470,-500.0,0.00016438,2]
[330685170,1719709842480,-2534.1,0.00016438,2]
[330685171,1719709842489,-500.0,0.00016438,2]
[330685172,1719709842498,-632.5737695,0.00016438,2]
[330685173,1719709842507,-545.02406216,0.00016438,2]
[330685174,1719709842516,-500.0,0.00016438,2]
[330685175,1719709842525,-963.11,0.00016438,2]
[330685177,1719709842534,-1165.75,0.00016438,2]
[330685178,1719709842544,-962.64,0.00016438,2]
[330685179,1719709842553,-568.06,0.00016438,2]
[330685181,1719709842563,-272.82419331,0.00016438,2]
[330685182,1719709842572,-808.78,0.00016438,2]
[330685184,1719709842582,-676.3,0.00016438,2]
[330685186,1719709842591,-500.0,0.00016438,2]
[330685188,1719709842600,-8434.27,0.00016438,2]
[330685190,1719709842610,-500.0,0.00016438,2]
[330685192,1719709842619,-500.0,0.00016438,2]
[330685194,1719709842628,-500.0,0.00016438,2]
[330685196,1719709842639,-605.48974468,0.00016438,2]
[330685198,1719709842648,-814.16,0.00016438,2]
[330685200,1719709842657,-46118.54,0.00016438,2]
[330685202,1719709842667,-500.0,0.00016438,2]
[330685204,1719709842676,-4317.99,0.00016438,2]
[330685206,1719709842685,-500.0,0.00016438,2]
[330685208,1719709842695,-500.0,0.00016438,2]
[330685210,1719709842704,-835.38,0.00016438,2]
[330685212,1719709842713,-498.62426849,0.00016438,2]
[330685214,1719709842722,-500.0,0.00016438,2]
[330685215,1719709842731,-501.66243871,0.00016438,2]
[330685217,1719709842740,-257.07669124,0.00016438,2]
[330685218,1719709842749,-507.40533053,0.00016438,2]
[330685220,1719709842759,-871.44,0.00016438,2]
[330685222,1719709842768,-2963.02,0.00016438,2]
[330685224,1719709842777,-500.0,0.00016438,2]
[330685226,1719709842788,-1021.09,0.00016438,2]
[330685228,1719709842798,-4104.89,0.00016438,2]
[330685230,1719709842807,-500.0,0.00016438,2]
[330685232,1719709842816,-610.22,0.00016438,2]
[330685234,1719709842826,-506.16242033,0.00016438,2]
[330685237,1719709842835,-735.81,0.00016438,2]
[330685239,1719709842844,-753.71,0.00016438,2]
[330685242,1719709842853,-500.0,0.00016438,2]
[330685244,1719709842863,-500.0,0.00016438,2]
[330685247,1719709842872,-500.0,0.00016438,2]
[330685250,1719709842882,-614.30249063,0.00016438,2]
[330685253,1719709842891,-3202.87,0.00016438,2]
[330685256,1719709842901,-500.0,0.00016438,2]
[330685259,1719709842910,-500.0,0.00016438,2]
[330685261,1719709842920,-602.97,0.00016438,2]
[330685263,1719709842929,-9882.28,0.00016438,2]
[330685266,1719709842938,-500.0,0.00016438,2]
[330685269,1719709842948,-500.0,0.00016438,2]
[330685272,1719709842957,-1681.67,0.00016438,2]
[330685274,1719709842966,-312.49740501,0.00016438,2]
[330685276,1719709842975,-1664.54,0.00016438,2]
[330685278,1719709842986,-507.33651066,0.00016438,2]
[330685280,1719709842995,-502.89687144,0.00016438,2]
[330685281,1719709843004,-678.69,0.00016438,2]
[330685283,1719709843013,-984.07,0.00016438,2]
[330685285,1719709843023,-500.0,0.00016438,2]
[330685287,1719709843032,-11691.48,0.00016438,2]
[330685289,1719709843041,-500.0,0.00016438,2]
[330685291,1719709843050,-500.0,0.00016438,2]
[330685293,1719709843062,-7060.71,0.00016438,2]
[330685295,1719709843078,-19083.97,0.00016438,2]
[330685297,1719709843087,-500.0,0.00016438,2]
[330685299,1719709843096,-500.0,0.00016438,2]
[330685301,1719709843107,-500.0,0.00016438,2]
[330685303,1719709843116,-500.0,0.00016438,2]
[330685304,1719709843126,-504.08985848,0.00016438,2]
[330685306,1719709843136,-352.01106044,0.00016438,2]
[330685308,1719709843146,-500.0,0.00016438,2]
[330685310,1719709843158,-623.23240016,0.00016438,2]
[330685312,1719709843168,-798.4,0.00016438,2]
[330685314,1719709843178,-1224.47,0.00016438,2]
[330685316,1719709843187,-491.67118588,0.00016438,2]
[330685318,1719709843197,-500.0,0.00016438,2]
[330685320,1719709843206,-500.0,0.00016438,2]
[330685322,1719709843215,-786.98,0.00016438,2]
[330685323,1719709843224,-1948.09,0.00016438,2]
[330685324,1719709843232,-1004.06,0.00016438,2]
[330685325,1719709843242,-500.0,0.00016438,2]
[330685327,1719709843250,-500.0,0.00016438,2]
[330685329,1719709843259,-500.0,0.00016438,2]
[330685330,1719709843268,-500.0,0.00016438,2]
[330685332,1719709843277,-500.0,0.00016438,2]
[330685334,1719709843287,-500.0,0.00016438,2]
[330685335,1719709843296,-500.0,0.00016438,2]
[330685337,1719709843305,-618.94,0.00016438,2]
[330685339,1719709843314,-644.95,0.00016438,2]
[330685340,1719709843323,-500.0,0.00016438,2]
[330685342,1719709843332,-500.0,0.00016438,2]
[330685343,1719709843342,-3645.27,0.00016438,2]
[330685344,1719709843351,-1254.32,0.00016438,2]
[330685345,1719709843362,-500.0,0.00016438,2]
[330685346,1719709843372,-500.0,0.00016438,2]
[330685347,1719709843381,-286.46347606,0.00016438,2]
[330685348,1719709843393,-628.64,0.00016438,2]
[330685349,1719709843403,-500.0,0.00016438,2]
[330685350,1719709843412,-500.0,0.00016438,2]
[330685351,1719709843424,-615.08,0.00016438,2]
[330685352,1719709843433,-1014.16,0.00016438,2]
[330685353,1719709843442,-500.0,0.00016438,2]
[330685354,1719709843452,-1993.2,0.00016438,2]
[330685355,1719709843462,-500.0,0.00016438,2]